{"text_format":"3","workbook":"xlsx","n_sheets":2,"sheets":["Svorio kritimo sekimo priemonė","skaičiavimai"],"not_rendered":{"charts":1,"defined_names":7},"read":"whole","date_system":"1900"}

{"sheet":"Svorio kritimo sekimo priemonė","index":0,"n_rows":19,"n_cols":9,"rows_kept":19,"merged":[[0,3,0,7],[0,8,0,9],[1,3,2,9]]}
[null,"NORIMAS PASIEKTI SVORIS","DIAGRAMOS RODINYS","Vardas, Pavardė",{"$nulls":4},"SVORIO KRITIMAS"]
[{"$nulls":3},"STEBĖJIMO PRIEMONĖ"]
[null,{"v":172,"d":"172.0"},"KAS SAVAITĘ"]
[null,"RODYTI NORIMĄ PASIEKTI SVORĮ","Taip"]
[null,"Svorio sekimo priemonės diagramos šiame stulpelyje sekamas dabartinis svoris. Langelyje C4 pasirinkite \"Taip\", kad virš plokštuminės diagramos būtų rodoma eilutė Norimas pasiekti svoris."]
[]
[null,"DATA","SVORIS"]
[null,{"$f":"TODAY()-77","v":"2022-01-21"},{"v":176,"d":"176.0"}]
[null,{"$f":"TODAY()-70","v":"2022-01-28"},{"v":176,"d":"176.0"}]
[null,{"$f":"TODAY()-63","v":"2022-02-04"},177.6]
[null,{"$f":"TODAY()-56","v":"2022-02-11"},176.5]
[null,{"$f":"TODAY()-49","v":"2022-02-18"},176.1]
[null,{"$f":"TODAY()-42","v":"2022-02-25"},{"v":174,"d":"174.0"}]
[null,{"$f":"TODAY()-35","v":"2022-03-04"},173.5]
[null,{"$f":"TODAY()-28","v":"2022-03-11"},{"v":173,"d":"173.0"}]
[null,{"$f":"TODAY()-21","v":"2022-03-18"},{"v":172,"d":"172.0"}]
[null,{"$f":"TODAY()-14","v":"2022-03-25"},{"v":172,"d":"172.0"}]
[null,{"$f":"TODAY()-7","v":"2022-04-01"},{"v":173,"d":"173.0"}]
[null,{"$f":"TODAY()","v":"2022-04-08"},{"v":172,"d":"172.0"}]

{"sheet":"skaičiavimai","index":1,"n_rows":107,"n_cols":17,"rows_kept":107,"hidden":true}
["*** Darbalapis turi likti paslėptas ***"]
[]
[{"$f":"COUNTIF(A5:A107,FALSE)","v":12},"Laikotarpiai","Reikšmės",{"$nulls":3},{"$f":"COUNTIF(H5:H28,\">\"&0)","v":4},"Laikotarpiai",null,"Reikšmės"]
[null,"Savaitė",null,null,{"$f":"IFERROR(IF(RodytiTiksloSvorį=\"Taip\", TRUE, FALSE),FALSE)","v":true},null,null,"Mėnuo","Mėnesio pabaiga"]
[{"$f":"FALSE","v":false},{"$f":"IFERROR(IF(LEN('Svorio kritimo sekimo priemonė'!$B8)=0,TODAY(),'Svorio kritimo sekimo priemonė'!$B8),TODAY())","v":"2022-01-21"},{"$f":"IFERROR(IF(LEN('Svorio kritimo sekimo priemonė'!$C8)=0,TiksloSvoris,'Svorio kritimo sekimo priemonė'!$C8),0)","v":176},{"$f":"IFERROR(IF(MIN(DiagramosLaikotarpiai)=0,TODAY(),MIN(DiagramosLaikotarpiai)),TODAY())","v":"2022-01-21"},{"$f":"IFERROR(IF($A$5,0,IF($E$4,TiksloSvoris,NA())),0)","v":172},null,null,{"$f":"IFERROR(IF($A$5,TODAY(),DATE(YEAR($B5),MONTH($B5),1)),\"\")","v":"2022-01-01"},{"$f":"IFERROR(IF($A$5,TODAY(),EOMONTH($H5,0)),\"\")","v":"2022-01-31"},{"$f":"IFERROR(IF($A$5,0,AVERAGEIFS(Svoris[SVORIS],Svoris[DATA],\">=\"&$H5,Svoris[DATA],\"<=\"&$I5)),NA())","v":176}]
[{"$f":"IF((LEN('Svorio kritimo sekimo priemonė'!$C9)=0),TRUE)","v":false},{"$f":"IFERROR(IF(A6,0,IF(LEN('Svorio kritimo sekimo priemonė'!$B9)=0,0,'Svorio kritimo sekimo priemonė'!$B9)),\"\")","v":"2022-01-28"},{"$f":"IFERROR(IF(A6,0,IF(LEN('Svorio kritimo sekimo priemonė'!$C9)=0,0,'Svorio kritimo sekimo priemonė'!$C9)),\"\")","v":176},{"$f":"IFERROR(IF(MAX(DiagramosLaikotarpiai)=0,TODAY(),MAX(DiagramosLaikotarpiai)),TODAY())","v":"2022-04-08"},{"$f":"IFERROR(IF($A$5,0,IF($E$4,TiksloSvoris,NA())),0)","v":172},null,null,{"$f":"IF($I5+1>MAX($B:$B),NA(),$I5+1)","v":"2022-02-01"},{"$f":"EOMONTH($H6,0)","v":"2022-02-28"},{"$f":"IFERROR(AVERAGEIFS(Svoris[SVORIS],Svoris[DATA],\">=\"&$H6,Svoris[DATA],\"<=\"&$I6),NA())","v":176.05}]
[{"$f":"IF((LEN('Svorio kritimo sekimo priemonė'!$C10)=0),TRUE)","v":false},{"$f":"IFERROR(IF(A7,0,IF(LEN('Svorio kritimo sekimo priemonė'!$B10)=0,0,'Svorio kritimo sekimo priemonė'!$B10)),\"\")","v":"2022-02-04"},{"$f":"IFERROR(IF(A7,0,IF(LEN('Svorio kritimo sekimo priemonė'!$C10)=0,0,'Svorio kritimo sekimo priemonė'!$C10)),\"\")","v":177.6},{"$nulls":4},"2022-03-01","2022-03-31",{"$f":"IFERROR(AVERAGEIFS(Svoris[SVORIS],Svoris[DATA],\">=\"&$H7,Svoris[DATA],\"<=\"&$I7),NA())","v":172.625}]
[{"$f":"IF((LEN('Svorio kritimo sekimo priemonė'!$C11)=0),TRUE)","v":false},{"$f":"IFERROR(IF(A8,0,IF(LEN('Svorio kritimo sekimo priemonė'!$B11)=0,0,'Svorio kritimo sekimo priemonė'!$B11)),\"\")","v":"2022-02-11"},{"$f":"IFERROR(IF(A8,0,IF(LEN('Svorio kritimo sekimo priemonė'!$C11)=0,0,'Svorio kritimo sekimo priemonė'!$C11)),\"\")","v":176.5},{"$nulls":4},"2022-04-01","2022-04-30",{"$f":"IFERROR(AVERAGEIFS(Svoris[SVORIS],Svoris[DATA],\">=\"&$H8,Svoris[DATA],\"<=\"&$I8),NA())","v":172.5}]
[{"$f":"IF((LEN('Svorio kritimo sekimo priemonė'!$C12)=0),TRUE)","v":false},{"$f":"IFERROR(IF(A9,0,IF(LEN('Svorio kritimo sekimo priemonė'!$B12)=0,0,'Svorio kritimo sekimo priemonė'!$B12)),\"\")","v":"2022-02-18"},{"$f":"IFERROR(IF(A9,0,IF(LEN('Svorio kritimo sekimo priemonė'!$C12)=0,0,'Svorio kritimo sekimo priemonė'!$C12)),\"\")","v":176.1},{"$nulls":4},{"$error":"#N/A"},{"$error":"#N/A"},{"$f":"IFERROR(AVERAGEIFS(Svoris[SVORIS],Svoris[DATA],\">=\"&$H9,Svoris[DATA],\"<=\"&$I9),NA())","v":{"$error":"#N/A"}}]
[{"$f":"IF((LEN('Svorio kritimo sekimo priemonė'!$C13)=0),TRUE)","v":false},{"$f":"IFERROR(IF(A10,0,IF(LEN('Svorio kritimo sekimo priemonė'!$B13)=0,0,'Svorio kritimo sekimo priemonė'!$B13)),\"\")","v":"2022-02-25"},{"$f":"IFERROR(IF(A10,0,IF(LEN('Svorio kritimo sekimo priemonė'!$C13)=0,0,'Svorio kritimo sekimo priemonė'!$C13)),\"\")","v":174},{"$nulls":4},{"$error":"#N/A"},{"$error":"#N/A"},{"$f":"IFERROR(AVERAGEIFS(Svoris[SVORIS],Svoris[DATA],\">=\"&$H10,Svoris[DATA],\"<=\"&$I10),NA())","v":{"$error":"#N/A"}}]
[{"$f":"IF((LEN('Svorio kritimo sekimo priemonė'!$C14)=0),TRUE)","v":false},{"$f":"IFERROR(IF(A11,0,IF(LEN('Svorio kritimo sekimo priemonė'!$B14)=0,0,'Svorio kritimo sekimo priemonė'!$B14)),\"\")","v":"2022-03-04"},{"$f":"IFERROR(IF(A11,0,IF(LEN('Svorio kritimo sekimo priemonė'!$C14)=0,0,'Svorio kritimo sekimo priemonė'!$C14)),\"\")","v":173.5},{"$nulls":4},{"$error":"#N/A"},{"$error":"#N/A"},{"$f":"IFERROR(AVERAGEIFS(Svoris[SVORIS],Svoris[DATA],\">=\"&$H11,Svoris[DATA],\"<=\"&$I11),NA())","v":{"$error":"#N/A"}},{"$nulls":6},{"$f":"MAX($B:$B)","v":"2022-04-08"}]
[{"$f":"IF((LEN('Svorio kritimo sekimo priemonė'!$C15)=0),TRUE)","v":false},{"$f":"IFERROR(IF(A12,0,IF(LEN('Svorio kritimo sekimo priemonė'!$B15)=0,0,'Svorio kritimo sekimo priemonė'!$B15)),\"\")","v":"2022-03-11"},{"$f":"IFERROR(IF(A12,0,IF(LEN('Svorio kritimo sekimo priemonė'!$C15)=0,0,'Svorio kritimo sekimo priemonė'!$C15)),\"\")","v":173},{"$nulls":4},{"$error":"#N/A"},{"$error":"#N/A"},{"$f":"IFERROR(AVERAGEIFS(Svoris[SVORIS],Svoris[DATA],\">=\"&$H12,Svoris[DATA],\"<=\"&$I12),NA())","v":{"$error":"#N/A"}}]
[{"$f":"IF((LEN('Svorio kritimo sekimo priemonė'!$C16)=0),TRUE)","v":false},{"$f":"IFERROR(IF(A13,0,IF(LEN('Svorio kritimo sekimo priemonė'!$B16)=0,0,'Svorio kritimo sekimo priemonė'!$B16)),\"\")","v":"2022-03-18"},{"$f":"IFERROR(IF(A13,0,IF(LEN('Svorio kritimo sekimo priemonė'!$C16)=0,0,'Svorio kritimo sekimo priemonė'!$C16)),\"\")","v":172},{"$nulls":4},{"$error":"#N/A"},{"$error":"#N/A"},{"$f":"IFERROR(AVERAGEIFS(Svoris[SVORIS],Svoris[DATA],\">=\"&$H13,Svoris[DATA],\"<=\"&$I13),NA())","v":{"$error":"#N/A"}}]
[{"$f":"IF((LEN('Svorio kritimo sekimo priemonė'!$C17)=0),TRUE)","v":false},{"$f":"IFERROR(IF(A14,0,IF(LEN('Svorio kritimo sekimo priemonė'!$B17)=0,0,'Svorio kritimo sekimo priemonė'!$B17)),\"\")","v":"2022-03-25"},{"$f":"IFERROR(IF(A14,0,IF(LEN('Svorio kritimo sekimo priemonė'!$C17)=0,0,'Svorio kritimo sekimo priemonė'!$C17)),\"\")","v":172},{"$nulls":4},{"$error":"#N/A"},{"$error":"#N/A"},{"$f":"IFERROR(AVERAGEIFS(Svoris[SVORIS],Svoris[DATA],\">=\"&$H14,Svoris[DATA],\"<=\"&$I14),NA())","v":{"$error":"#N/A"}}]
[{"$f":"IF((LEN('Svorio kritimo sekimo priemonė'!$C18)=0),TRUE)","v":false},{"$f":"IFERROR(IF(A15,0,IF(LEN('Svorio kritimo sekimo priemonė'!$B18)=0,0,'Svorio kritimo sekimo priemonė'!$B18)),\"\")","v":"2022-04-01"},{"$f":"IFERROR(IF(A15,0,IF(LEN('Svorio kritimo sekimo priemonė'!$C18)=0,0,'Svorio kritimo sekimo priemonė'!$C18)),\"\")","v":173},{"$nulls":4},{"$error":"#N/A"},{"$error":"#N/A"},{"$f":"IFERROR(AVERAGEIFS(Svoris[SVORIS],Svoris[DATA],\">=\"&$H15,Svoris[DATA],\"<=\"&$I15),NA())","v":{"$error":"#N/A"}}]
[{"$f":"IF((LEN('Svorio kritimo sekimo priemonė'!$C19)=0),TRUE)","v":false},{"$f":"IFERROR(IF(A16,0,IF(LEN('Svorio kritimo sekimo priemonė'!$B19)=0,0,'Svorio kritimo sekimo priemonė'!$B19)),\"\")","v":"2022-04-08"},{"$f":"IFERROR(IF(A16,0,IF(LEN('Svorio kritimo sekimo priemonė'!$C19)=0,0,'Svorio kritimo sekimo priemonė'!$C19)),\"\")","v":172},{"$nulls":4},{"$error":"#N/A"},{"$error":"#N/A"},{"$f":"IFERROR(AVERAGEIFS(Svoris[SVORIS],Svoris[DATA],\">=\"&$H16,Svoris[DATA],\"<=\"&$I16),NA())","v":{"$error":"#N/A"}}]
[{"$f":"IF((LEN('Svorio kritimo sekimo priemonė'!$C20)=0),TRUE)","v":true},{"$f":"IFERROR(IF(A17,0,IF(LEN('Svorio kritimo sekimo priemonė'!$B20)=0,0,'Svorio kritimo sekimo priemonė'!$B20)),\"\")","v":"00:00:00"},{"$f":"IFERROR(IF(A17,0,IF(LEN('Svorio kritimo sekimo priemonė'!$C20)=0,0,'Svorio kritimo sekimo priemonė'!$C20)),\"\")","v":0},{"$nulls":4},{"$error":"#N/A"},{"$error":"#N/A"},{"$f":"IFERROR(AVERAGEIFS(Svoris[SVORIS],Svoris[DATA],\">=\"&$H17,Svoris[DATA],\"<=\"&$I17),NA())","v":{"$error":"#N/A"}}]
[{"$f":"IF((LEN('Svorio kritimo sekimo priemonė'!$C21)=0),TRUE)","v":true},{"$f":"IFERROR(IF(A18,0,IF(LEN('Svorio kritimo sekimo priemonė'!$B21)=0,0,'Svorio kritimo sekimo priemonė'!$B21)),\"\")","v":"00:00:00"},{"$f":"IFERROR(IF(A18,0,IF(LEN('Svorio kritimo sekimo priemonė'!$C21)=0,0,'Svorio kritimo sekimo priemonė'!$C21)),\"\")","v":0},{"$nulls":4},{"$error":"#N/A"},{"$error":"#N/A"},{"$f":"IFERROR(AVERAGEIFS(Svoris[SVORIS],Svoris[DATA],\">=\"&$H18,Svoris[DATA],\"<=\"&$I18),NA())","v":{"$error":"#N/A"}}]
[{"$f":"IF((LEN('Svorio kritimo sekimo priemonė'!$C22)=0),TRUE)","v":true},{"$f":"IFERROR(IF(A19,0,IF(LEN('Svorio kritimo sekimo priemonė'!$B22)=0,0,'Svorio kritimo sekimo priemonė'!$B22)),\"\")","v":"00:00:00"},{"$f":"IFERROR(IF(A19,0,IF(LEN('Svorio kritimo sekimo priemonė'!$C22)=0,0,'Svorio kritimo sekimo priemonė'!$C22)),\"\")","v":0},{"$nulls":4},{"$error":"#N/A"},{"$error":"#N/A"},{"$f":"IFERROR(AVERAGEIFS(Svoris[SVORIS],Svoris[DATA],\">=\"&$H19,Svoris[DATA],\"<=\"&$I19),NA())","v":{"$error":"#N/A"}}]
[{"$f":"IF((LEN('Svorio kritimo sekimo priemonė'!$C23)=0),TRUE)","v":true},{"$f":"IFERROR(IF(A20,0,IF(LEN('Svorio kritimo sekimo priemonė'!$B23)=0,0,'Svorio kritimo sekimo priemonė'!$B23)),\"\")","v":"00:00:00"},{"$f":"IFERROR(IF(A20,0,IF(LEN('Svorio kritimo sekimo priemonė'!$C23)=0,0,'Svorio kritimo sekimo priemonė'!$C23)),\"\")","v":0},{"$nulls":4},{"$error":"#N/A"},{"$error":"#N/A"},{"$f":"IFERROR(AVERAGEIFS(Svoris[SVORIS],Svoris[DATA],\">=\"&$H20,Svoris[DATA],\"<=\"&$I20),NA())","v":{"$error":"#N/A"}}]
[{"$f":"IF((LEN('Svorio kritimo sekimo priemonė'!$C24)=0),TRUE)","v":true},{"$f":"IFERROR(IF(A21,0,IF(LEN('Svorio kritimo sekimo priemonė'!$B24)=0,0,'Svorio kritimo sekimo priemonė'!$B24)),\"\")","v":"00:00:00"},{"$f":"IFERROR(IF(A21,0,IF(LEN('Svorio kritimo sekimo priemonė'!$C24)=0,0,'Svorio kritimo sekimo priemonė'!$C24)),\"\")","v":0},{"$nulls":4},{"$error":"#N/A"},{"$error":"#N/A"},{"$f":"IFERROR(AVERAGEIFS(Svoris[SVORIS],Svoris[DATA],\">=\"&$H21,Svoris[DATA],\"<=\"&$I21),NA())","v":{"$error":"#N/A"}}]
[{"$f":"IF((LEN('Svorio kritimo sekimo priemonė'!$C25)=0),TRUE)","v":true},{"$f":"IFERROR(IF(A22,0,IF(LEN('Svorio kritimo sekimo priemonė'!$B25)=0,0,'Svorio kritimo sekimo priemonė'!$B25)),\"\")","v":"00:00:00"},{"$f":"IFERROR(IF(A22,0,IF(LEN('Svorio kritimo sekimo priemonė'!$C25)=0,0,'Svorio kritimo sekimo priemonė'!$C25)),\"\")","v":0},{"$nulls":4},{"$error":"#N/A"},{"$error":"#N/A"},{"$f":"IFERROR(AVERAGEIFS(Svoris[SVORIS],Svoris[DATA],\">=\"&$H22,Svoris[DATA],\"<=\"&$I22),NA())","v":{"$error":"#N/A"}}]
[{"$f":"IF((LEN('Svorio kritimo sekimo priemonė'!$C26)=0),TRUE)","v":true},{"$f":"IFERROR(IF(A23,0,IF(LEN('Svorio kritimo sekimo priemonė'!$B26)=0,0,'Svorio kritimo sekimo priemonė'!$B26)),\"\")","v":"00:00:00"},{"$f":"IFERROR(IF(A23,0,IF(LEN('Svorio kritimo sekimo priemonė'!$C26)=0,0,'Svorio kritimo sekimo priemonė'!$C26)),\"\")","v":0},{"$nulls":4},{"$error":"#N/A"},{"$error":"#N/A"},{"$f":"IFERROR(AVERAGEIFS(Svoris[SVORIS],Svoris[DATA],\">=\"&$H23,Svoris[DATA],\"<=\"&$I23),NA())","v":{"$error":"#N/A"}}]
[{"$f":"IF((LEN('Svorio kritimo sekimo priemonė'!$C27)=0),TRUE)","v":true},{"$f":"IFERROR(IF(A24,0,IF(LEN('Svorio kritimo sekimo priemonė'!$B27)=0,0,'Svorio kritimo sekimo priemonė'!$B27)),\"\")","v":"00:00:00"},{"$f":"IFERROR(IF(A24,0,IF(LEN('Svorio kritimo sekimo priemonė'!$C27)=0,0,'Svorio kritimo sekimo priemonė'!$C27)),\"\")","v":0},{"$nulls":4},{"$error":"#N/A"},{"$error":"#N/A"},{"$f":"IFERROR(AVERAGEIFS(Svoris[SVORIS],Svoris[DATA],\">=\"&$H24,Svoris[DATA],\"<=\"&$I24),NA())","v":{"$error":"#N/A"}}]
[{"$f":"IF((LEN('Svorio kritimo sekimo priemonė'!$C28)=0),TRUE)","v":true},{"$f":"IFERROR(IF(A25,0,IF(LEN('Svorio kritimo sekimo priemonė'!$B28)=0,0,'Svorio kritimo sekimo priemonė'!$B28)),\"\")","v":"00:00:00"},{"$f":"IFERROR(IF(A25,0,IF(LEN('Svorio kritimo sekimo priemonė'!$C28)=0,0,'Svorio kritimo sekimo priemonė'!$C28)),\"\")","v":0},{"$nulls":4},{"$error":"#N/A"},{"$error":"#N/A"},{"$f":"IFERROR(AVERAGEIFS(Svoris[SVORIS],Svoris[DATA],\">=\"&$H25,Svoris[DATA],\"<=\"&$I25),NA())","v":{"$error":"#N/A"}}]
[{"$f":"IF((LEN('Svorio kritimo sekimo priemonė'!$C29)=0),TRUE)","v":true},{"$f":"IFERROR(IF(A26,0,IF(LEN('Svorio kritimo sekimo priemonė'!$B29)=0,0,'Svorio kritimo sekimo priemonė'!$B29)),\"\")","v":"00:00:00"},{"$f":"IFERROR(IF(A26,0,IF(LEN('Svorio kritimo sekimo priemonė'!$C29)=0,0,'Svorio kritimo sekimo priemonė'!$C29)),\"\")","v":0},{"$nulls":4},{"$error":"#N/A"},{"$error":"#N/A"},{"$f":"IFERROR(AVERAGEIFS(Svoris[SVORIS],Svoris[DATA],\">=\"&$H26,Svoris[DATA],\"<=\"&$I26),NA())","v":{"$error":"#N/A"}}]
[{"$f":"IF((LEN('Svorio kritimo sekimo priemonė'!$C30)=0),TRUE)","v":true},{"$f":"IFERROR(IF(A27,0,IF(LEN('Svorio kritimo sekimo priemonė'!$B30)=0,0,'Svorio kritimo sekimo priemonė'!$B30)),\"\")","v":"00:00:00"},{"$f":"IFERROR(IF(A27,0,IF(LEN('Svorio kritimo sekimo priemonė'!$C30)=0,0,'Svorio kritimo sekimo priemonė'!$C30)),\"\")","v":0},{"$nulls":4},{"$error":"#N/A"},{"$error":"#N/A"},{"$f":"IFERROR(AVERAGEIFS(Svoris[SVORIS],Svoris[DATA],\">=\"&$H27,Svoris[DATA],\"<=\"&$I27),NA())","v":{"$error":"#N/A"}}]
[{"$f":"IF((LEN('Svorio kritimo sekimo priemonė'!$C31)=0),TRUE)","v":true},{"$f":"IFERROR(IF(A28,0,IF(LEN('Svorio kritimo sekimo priemonė'!$B31)=0,0,'Svorio kritimo sekimo priemonė'!$B31)),\"\")","v":"00:00:00"},{"$f":"IFERROR(IF(A28,0,IF(LEN('Svorio kritimo sekimo priemonė'!$C31)=0,0,'Svorio kritimo sekimo priemonė'!$C31)),\"\")","v":0},{"$nulls":4},{"$error":"#N/A"},{"$error":"#N/A"},{"$f":"IFERROR(AVERAGEIFS(Svoris[SVORIS],Svoris[DATA],\">=\"&$H28,Svoris[DATA],\"<=\"&$I28),NA())","v":{"$error":"#N/A"}}]
[{"$f":"IF((LEN('Svorio kritimo sekimo priemonė'!$C32)=0),TRUE)","v":true},{"$f":"IFERROR(IF(A29,0,IF(LEN('Svorio kritimo sekimo priemonė'!$B32)=0,0,'Svorio kritimo sekimo priemonė'!$B32)),\"\")","v":"00:00:00"},{"$f":"IFERROR(IF(A29,0,IF(LEN('Svorio kritimo sekimo priemonė'!$C32)=0,0,'Svorio kritimo sekimo priemonė'!$C32)),\"\")","v":0}]
[{"$f":"IF((LEN('Svorio kritimo sekimo priemonė'!$C33)=0),TRUE)","v":true},{"$f":"IFERROR(IF(A30,0,IF(LEN('Svorio kritimo sekimo priemonė'!$B33)=0,0,'Svorio kritimo sekimo priemonė'!$B33)),\"\")","v":"00:00:00"},{"$f":"IFERROR(IF(A30,0,IF(LEN('Svorio kritimo sekimo priemonė'!$C33)=0,0,'Svorio kritimo sekimo priemonė'!$C33)),\"\")","v":0}]
[{"$f":"IF((LEN('Svorio kritimo sekimo priemonė'!$C34)=0),TRUE)","v":true},{"$f":"IFERROR(IF(A31,0,IF(LEN('Svorio kritimo sekimo priemonė'!$B34)=0,0,'Svorio kritimo sekimo priemonė'!$B34)),\"\")","v":"00:00:00"},{"$f":"IFERROR(IF(A31,0,IF(LEN('Svorio kritimo sekimo priemonė'!$C34)=0,0,'Svorio kritimo sekimo priemonė'!$C34)),\"\")","v":0}]
[{"$f":"IF((LEN('Svorio kritimo sekimo priemonė'!$C35)=0),TRUE)","v":true},{"$f":"IFERROR(IF(A32,0,IF(LEN('Svorio kritimo sekimo priemonė'!$B35)=0,0,'Svorio kritimo sekimo priemonė'!$B35)),\"\")","v":"00:00:00"},{"$f":"IFERROR(IF(A32,0,IF(LEN('Svorio kritimo sekimo priemonė'!$C35)=0,0,'Svorio kritimo sekimo priemonė'!$C35)),\"\")","v":0}]
[{"$f":"IF((LEN('Svorio kritimo sekimo priemonė'!$C36)=0),TRUE)","v":true},{"$f":"IFERROR(IF(A33,0,IF(LEN('Svorio kritimo sekimo priemonė'!$B36)=0,0,'Svorio kritimo sekimo priemonė'!$B36)),\"\")","v":"00:00:00"},{"$f":"IFERROR(IF(A33,0,IF(LEN('Svorio kritimo sekimo priemonė'!$C36)=0,0,'Svorio kritimo sekimo priemonė'!$C36)),\"\")","v":0}]
[{"$f":"IF((LEN('Svorio kritimo sekimo priemonė'!$C37)=0),TRUE)","v":true},{"$f":"IFERROR(IF(A34,0,IF(LEN('Svorio kritimo sekimo priemonė'!$B37)=0,0,'Svorio kritimo sekimo priemonė'!$B37)),\"\")","v":"00:00:00"},{"$f":"IFERROR(IF(A34,0,IF(LEN('Svorio kritimo sekimo priemonė'!$C37)=0,0,'Svorio kritimo sekimo priemonė'!$C37)),\"\")","v":0}]
[{"$f":"IF((LEN('Svorio kritimo sekimo priemonė'!$C38)=0),TRUE)","v":true},{"$f":"IFERROR(IF(A35,0,IF(LEN('Svorio kritimo sekimo priemonė'!$B38)=0,0,'Svorio kritimo sekimo priemonė'!$B38)),\"\")","v":"00:00:00"},{"$f":"IFERROR(IF(A35,0,IF(LEN('Svorio kritimo sekimo priemonė'!$C38)=0,0,'Svorio kritimo sekimo priemonė'!$C38)),\"\")","v":0}]
[{"$f":"IF((LEN('Svorio kritimo sekimo priemonė'!$C39)=0),TRUE)","v":true},{"$f":"IFERROR(IF(A36,0,IF(LEN('Svorio kritimo sekimo priemonė'!$B39)=0,0,'Svorio kritimo sekimo priemonė'!$B39)),\"\")","v":"00:00:00"},{"$f":"IFERROR(IF(A36,0,IF(LEN('Svorio kritimo sekimo priemonė'!$C39)=0,0,'Svorio kritimo sekimo priemonė'!$C39)),\"\")","v":0}]
[{"$f":"IF((LEN('Svorio kritimo sekimo priemonė'!$C40)=0),TRUE)","v":true},{"$f":"IFERROR(IF(A37,0,IF(LEN('Svorio kritimo sekimo priemonė'!$B40)=0,0,'Svorio kritimo sekimo priemonė'!$B40)),\"\")","v":"00:00:00"},{"$f":"IFERROR(IF(A37,0,IF(LEN('Svorio kritimo sekimo priemonė'!$C40)=0,0,'Svorio kritimo sekimo priemonė'!$C40)),\"\")","v":0}]
[{"$f":"IF((LEN('Svorio kritimo sekimo priemonė'!$C41)=0),TRUE)","v":true},{"$f":"IFERROR(IF(A38,0,IF(LEN('Svorio kritimo sekimo priemonė'!$B41)=0,0,'Svorio kritimo sekimo priemonė'!$B41)),\"\")","v":"00:00:00"},{"$f":"IFERROR(IF(A38,0,IF(LEN('Svorio kritimo sekimo priemonė'!$C41)=0,0,'Svorio kritimo sekimo priemonė'!$C41)),\"\")","v":0}]
[{"$f":"IF((LEN('Svorio kritimo sekimo priemonė'!$C42)=0),TRUE)","v":true},{"$f":"IFERROR(IF(A39,0,IF(LEN('Svorio kritimo sekimo priemonė'!$B42)=0,0,'Svorio kritimo sekimo priemonė'!$B42)),\"\")","v":"00:00:00"},{"$f":"IFERROR(IF(A39,0,IF(LEN('Svorio kritimo sekimo priemonė'!$C42)=0,0,'Svorio kritimo sekimo priemonė'!$C42)),\"\")","v":0}]
[{"$f":"IF((LEN('Svorio kritimo sekimo priemonė'!$C43)=0),TRUE)","v":true},{"$f":"IFERROR(IF(A40,0,IF(LEN('Svorio kritimo sekimo priemonė'!$B43)=0,0,'Svorio kritimo sekimo priemonė'!$B43)),\"\")","v":"00:00:00"},{"$f":"IFERROR(IF(A40,0,IF(LEN('Svorio kritimo sekimo priemonė'!$C43)=0,0,'Svorio kritimo sekimo priemonė'!$C43)),\"\")","v":0}]
[{"$f":"IF((LEN('Svorio kritimo sekimo priemonė'!$C44)=0),TRUE)","v":true},{"$f":"IFERROR(IF(A41,0,IF(LEN('Svorio kritimo sekimo priemonė'!$B44)=0,0,'Svorio kritimo sekimo priemonė'!$B44)),\"\")","v":"00:00:00"},{"$f":"IFERROR(IF(A41,0,IF(LEN('Svorio kritimo sekimo priemonė'!$C44)=0,0,'Svorio kritimo sekimo priemonė'!$C44)),\"\")","v":0}]
[{"$f":"IF((LEN('Svorio kritimo sekimo priemonė'!$C45)=0),TRUE)","v":true},{"$f":"IFERROR(IF(A42,0,IF(LEN('Svorio kritimo sekimo priemonė'!$B45)=0,0,'Svorio kritimo sekimo priemonė'!$B45)),\"\")","v":"00:00:00"},{"$f":"IFERROR(IF(A42,0,IF(LEN('Svorio kritimo sekimo priemonė'!$C45)=0,0,'Svorio kritimo sekimo priemonė'!$C45)),\"\")","v":0}]
[{"$f":"IF((LEN('Svorio kritimo sekimo priemonė'!$C46)=0),TRUE)","v":true},{"$f":"IFERROR(IF(A43,0,IF(LEN('Svorio kritimo sekimo priemonė'!$B46)=0,0,'Svorio kritimo sekimo priemonė'!$B46)),\"\")","v":"00:00:00"},{"$f":"IFERROR(IF(A43,0,IF(LEN('Svorio kritimo sekimo priemonė'!$C46)=0,0,'Svorio kritimo sekimo priemonė'!$C46)),\"\")","v":0}]
[{"$f":"IF((LEN('Svorio kritimo sekimo priemonė'!$C47)=0),TRUE)","v":true},{"$f":"IFERROR(IF(A44,0,IF(LEN('Svorio kritimo sekimo priemonė'!$B47)=0,0,'Svorio kritimo sekimo priemonė'!$B47)),\"\")","v":"00:00:00"},{"$f":"IFERROR(IF(A44,0,IF(LEN('Svorio kritimo sekimo priemonė'!$C47)=0,0,'Svorio kritimo sekimo priemonė'!$C47)),\"\")","v":0}]
[{"$f":"IF((LEN('Svorio kritimo sekimo priemonė'!$C48)=0),TRUE)","v":true},{"$f":"IFERROR(IF(A45,0,IF(LEN('Svorio kritimo sekimo priemonė'!$B48)=0,0,'Svorio kritimo sekimo priemonė'!$B48)),\"\")","v":"00:00:00"},{"$f":"IFERROR(IF(A45,0,IF(LEN('Svorio kritimo sekimo priemonė'!$C48)=0,0,'Svorio kritimo sekimo priemonė'!$C48)),\"\")","v":0}]
[{"$f":"IF((LEN('Svorio kritimo sekimo priemonė'!$C49)=0),TRUE)","v":true},{"$f":"IFERROR(IF(A46,0,IF(LEN('Svorio kritimo sekimo priemonė'!$B49)=0,0,'Svorio kritimo sekimo priemonė'!$B49)),\"\")","v":"00:00:00"},{"$f":"IFERROR(IF(A46,0,IF(LEN('Svorio kritimo sekimo priemonė'!$C49)=0,0,'Svorio kritimo sekimo priemonė'!$C49)),\"\")","v":0}]
[{"$f":"IF((LEN('Svorio kritimo sekimo priemonė'!$C50)=0),TRUE)","v":true},{"$f":"IFERROR(IF(A47,0,IF(LEN('Svorio kritimo sekimo priemonė'!$B50)=0,0,'Svorio kritimo sekimo priemonė'!$B50)),\"\")","v":"00:00:00"},{"$f":"IFERROR(IF(A47,0,IF(LEN('Svorio kritimo sekimo priemonė'!$C50)=0,0,'Svorio kritimo sekimo priemonė'!$C50)),\"\")","v":0}]
[{"$f":"IF((LEN('Svorio kritimo sekimo priemonė'!$C51)=0),TRUE)","v":true},{"$f":"IFERROR(IF(A48,0,IF(LEN('Svorio kritimo sekimo priemonė'!$B51)=0,0,'Svorio kritimo sekimo priemonė'!$B51)),\"\")","v":"00:00:00"},{"$f":"IFERROR(IF(A48,0,IF(LEN('Svorio kritimo sekimo priemonė'!$C51)=0,0,'Svorio kritimo sekimo priemonė'!$C51)),\"\")","v":0}]
[{"$f":"IF((LEN('Svorio kritimo sekimo priemonė'!$C52)=0),TRUE)","v":true},{"$f":"IFERROR(IF(A49,0,IF(LEN('Svorio kritimo sekimo priemonė'!$B52)=0,0,'Svorio kritimo sekimo priemonė'!$B52)),\"\")","v":"00:00:00"},{"$f":"IFERROR(IF(A49,0,IF(LEN('Svorio kritimo sekimo priemonė'!$C52)=0,0,'Svorio kritimo sekimo priemonė'!$C52)),\"\")","v":0}]
[{"$f":"IF((LEN('Svorio kritimo sekimo priemonė'!$C53)=0),TRUE)","v":true},{"$f":"IFERROR(IF(A50,0,IF(LEN('Svorio kritimo sekimo priemonė'!$B53)=0,0,'Svorio kritimo sekimo priemonė'!$B53)),\"\")","v":"00:00:00"},{"$f":"IFERROR(IF(A50,0,IF(LEN('Svorio kritimo sekimo priemonė'!$C53)=0,0,'Svorio kritimo sekimo priemonė'!$C53)),\"\")","v":0}]
[{"$f":"IF((LEN('Svorio kritimo sekimo priemonė'!$C54)=0),TRUE)","v":true},{"$f":"IFERROR(IF(A51,0,IF(LEN('Svorio kritimo sekimo priemonė'!$B54)=0,0,'Svorio kritimo sekimo priemonė'!$B54)),\"\")","v":"00:00:00"},{"$f":"IFERROR(IF(A51,0,IF(LEN('Svorio kritimo sekimo priemonė'!$C54)=0,0,'Svorio kritimo sekimo priemonė'!$C54)),\"\")","v":0}]
[{"$f":"IF((LEN('Svorio kritimo sekimo priemonė'!$C55)=0),TRUE)","v":true},{"$f":"IFERROR(IF(A52,0,IF(LEN('Svorio kritimo sekimo priemonė'!$B55)=0,0,'Svorio kritimo sekimo priemonė'!$B55)),\"\")","v":"00:00:00"},{"$f":"IFERROR(IF(A52,0,IF(LEN('Svorio kritimo sekimo priemonė'!$C55)=0,0,'Svorio kritimo sekimo priemonė'!$C55)),\"\")","v":0}]
[{"$f":"IF((LEN('Svorio kritimo sekimo priemonė'!$C56)=0),TRUE)","v":true},{"$f":"IFERROR(IF(A53,0,IF(LEN('Svorio kritimo sekimo priemonė'!$B56)=0,0,'Svorio kritimo sekimo priemonė'!$B56)),\"\")","v":"00:00:00"},{"$f":"IFERROR(IF(A53,0,IF(LEN('Svorio kritimo sekimo priemonė'!$C56)=0,0,'Svorio kritimo sekimo priemonė'!$C56)),\"\")","v":0}]
[{"$f":"IF((LEN('Svorio kritimo sekimo priemonė'!$C57)=0),TRUE)","v":true},{"$f":"IFERROR(IF(A54,0,IF(LEN('Svorio kritimo sekimo priemonė'!$B57)=0,0,'Svorio kritimo sekimo priemonė'!$B57)),\"\")","v":"00:00:00"},{"$f":"IFERROR(IF(A54,0,IF(LEN('Svorio kritimo sekimo priemonė'!$C57)=0,0,'Svorio kritimo sekimo priemonė'!$C57)),\"\")","v":0}]
[{"$f":"IF((LEN('Svorio kritimo sekimo priemonė'!$C58)=0),TRUE)","v":true},{"$f":"IFERROR(IF(A55,0,IF(LEN('Svorio kritimo sekimo priemonė'!$B58)=0,0,'Svorio kritimo sekimo priemonė'!$B58)),\"\")","v":"00:00:00"},{"$f":"IFERROR(IF(A55,0,IF(LEN('Svorio kritimo sekimo priemonė'!$C58)=0,0,'Svorio kritimo sekimo priemonė'!$C58)),\"\")","v":0}]
[{"$f":"IF((LEN('Svorio kritimo sekimo priemonė'!$C59)=0),TRUE)","v":true},{"$f":"IFERROR(IF(A56,0,IF(LEN('Svorio kritimo sekimo priemonė'!$B59)=0,0,'Svorio kritimo sekimo priemonė'!$B59)),\"\")","v":"00:00:00"},{"$f":"IFERROR(IF(A56,0,IF(LEN('Svorio kritimo sekimo priemonė'!$C59)=0,0,'Svorio kritimo sekimo priemonė'!$C59)),\"\")","v":0}]
[{"$f":"IF((LEN('Svorio kritimo sekimo priemonė'!$C60)=0),TRUE)","v":true},{"$f":"IFERROR(IF(A57,0,IF(LEN('Svorio kritimo sekimo priemonė'!$B60)=0,0,'Svorio kritimo sekimo priemonė'!$B60)),\"\")","v":"00:00:00"},{"$f":"IFERROR(IF(A57,0,IF(LEN('Svorio kritimo sekimo priemonė'!$C60)=0,0,'Svorio kritimo sekimo priemonė'!$C60)),\"\")","v":0}]
[{"$f":"IF((LEN('Svorio kritimo sekimo priemonė'!$C61)=0),TRUE)","v":true},{"$f":"IFERROR(IF(A58,0,IF(LEN('Svorio kritimo sekimo priemonė'!$B61)=0,0,'Svorio kritimo sekimo priemonė'!$B61)),\"\")","v":"00:00:00"},{"$f":"IFERROR(IF(A58,0,IF(LEN('Svorio kritimo sekimo priemonė'!$C61)=0,0,'Svorio kritimo sekimo priemonė'!$C61)),\"\")","v":0}]
[{"$f":"IF((LEN('Svorio kritimo sekimo priemonė'!$C62)=0),TRUE)","v":true},{"$f":"IFERROR(IF(A59,0,IF(LEN('Svorio kritimo sekimo priemonė'!$B62)=0,0,'Svorio kritimo sekimo priemonė'!$B62)),\"\")","v":"00:00:00"},{"$f":"IFERROR(IF(A59,0,IF(LEN('Svorio kritimo sekimo priemonė'!$C62)=0,0,'Svorio kritimo sekimo priemonė'!$C62)),\"\")","v":0}]
[{"$f":"IF((LEN('Svorio kritimo sekimo priemonė'!$C63)=0),TRUE)","v":true},{"$f":"IFERROR(IF(A60,0,IF(LEN('Svorio kritimo sekimo priemonė'!$B63)=0,0,'Svorio kritimo sekimo priemonė'!$B63)),\"\")","v":"00:00:00"},{"$f":"IFERROR(IF(A60,0,IF(LEN('Svorio kritimo sekimo priemonė'!$C63)=0,0,'Svorio kritimo sekimo priemonė'!$C63)),\"\")","v":0}]
[{"$f":"IF((LEN('Svorio kritimo sekimo priemonė'!$C64)=0),TRUE)","v":true},{"$f":"IFERROR(IF(A61,0,IF(LEN('Svorio kritimo sekimo priemonė'!$B64)=0,0,'Svorio kritimo sekimo priemonė'!$B64)),\"\")","v":"00:00:00"},{"$f":"IFERROR(IF(A61,0,IF(LEN('Svorio kritimo sekimo priemonė'!$C64)=0,0,'Svorio kritimo sekimo priemonė'!$C64)),\"\")","v":0}]
[{"$f":"IF((LEN('Svorio kritimo sekimo priemonė'!$C65)=0),TRUE)","v":true},{"$f":"IFERROR(IF(A62,0,IF(LEN('Svorio kritimo sekimo priemonė'!$B65)=0,0,'Svorio kritimo sekimo priemonė'!$B65)),\"\")","v":"00:00:00"},{"$f":"IFERROR(IF(A62,0,IF(LEN('Svorio kritimo sekimo priemonė'!$C65)=0,0,'Svorio kritimo sekimo priemonė'!$C65)),\"\")","v":0}]
[{"$f":"IF((LEN('Svorio kritimo sekimo priemonė'!$C66)=0),TRUE)","v":true},{"$f":"IFERROR(IF(A63,0,IF(LEN('Svorio kritimo sekimo priemonė'!$B66)=0,0,'Svorio kritimo sekimo priemonė'!$B66)),\"\")","v":"00:00:00"},{"$f":"IFERROR(IF(A63,0,IF(LEN('Svorio kritimo sekimo priemonė'!$C66)=0,0,'Svorio kritimo sekimo priemonė'!$C66)),\"\")","v":0}]
[{"$f":"IF((LEN('Svorio kritimo sekimo priemonė'!$C67)=0),TRUE)","v":true},{"$f":"IFERROR(IF(A64,0,IF(LEN('Svorio kritimo sekimo priemonė'!$B67)=0,0,'Svorio kritimo sekimo priemonė'!$B67)),\"\")","v":"00:00:00"},{"$f":"IFERROR(IF(A64,0,IF(LEN('Svorio kritimo sekimo priemonė'!$C67)=0,0,'Svorio kritimo sekimo priemonė'!$C67)),\"\")","v":0}]
[{"$f":"IF((LEN('Svorio kritimo sekimo priemonė'!$C68)=0),TRUE)","v":true},{"$f":"IFERROR(IF(A65,0,IF(LEN('Svorio kritimo sekimo priemonė'!$B68)=0,0,'Svorio kritimo sekimo priemonė'!$B68)),\"\")","v":"00:00:00"},{"$f":"IFERROR(IF(A65,0,IF(LEN('Svorio kritimo sekimo priemonė'!$C68)=0,0,'Svorio kritimo sekimo priemonė'!$C68)),\"\")","v":0}]
[{"$f":"IF((LEN('Svorio kritimo sekimo priemonė'!$C69)=0),TRUE)","v":true},{"$f":"IFERROR(IF(A66,0,IF(LEN('Svorio kritimo sekimo priemonė'!$B69)=0,0,'Svorio kritimo sekimo priemonė'!$B69)),\"\")","v":"00:00:00"},{"$f":"IFERROR(IF(A66,0,IF(LEN('Svorio kritimo sekimo priemonė'!$C69)=0,0,'Svorio kritimo sekimo priemonė'!$C69)),\"\")","v":0}]
[{"$f":"IF((LEN('Svorio kritimo sekimo priemonė'!$C70)=0),TRUE)","v":true},{"$f":"IFERROR(IF(A67,0,IF(LEN('Svorio kritimo sekimo priemonė'!$B70)=0,0,'Svorio kritimo sekimo priemonė'!$B70)),\"\")","v":"00:00:00"},{"$f":"IFERROR(IF(A67,0,IF(LEN('Svorio kritimo sekimo priemonė'!$C70)=0,0,'Svorio kritimo sekimo priemonė'!$C70)),\"\")","v":0}]
[{"$f":"IF((LEN('Svorio kritimo sekimo priemonė'!$C71)=0),TRUE)","v":true},{"$f":"IFERROR(IF(A68,0,IF(LEN('Svorio kritimo sekimo priemonė'!$B71)=0,0,'Svorio kritimo sekimo priemonė'!$B71)),\"\")","v":"00:00:00"},{"$f":"IFERROR(IF(A68,0,IF(LEN('Svorio kritimo sekimo priemonė'!$C71)=0,0,'Svorio kritimo sekimo priemonė'!$C71)),\"\")","v":0}]
[{"$f":"IF((LEN('Svorio kritimo sekimo priemonė'!$C72)=0),TRUE)","v":true},{"$f":"IFERROR(IF(A69,0,IF(LEN('Svorio kritimo sekimo priemonė'!$B72)=0,0,'Svorio kritimo sekimo priemonė'!$B72)),\"\")","v":"00:00:00"},{"$f":"IFERROR(IF(A69,0,IF(LEN('Svorio kritimo sekimo priemonė'!$C72)=0,0,'Svorio kritimo sekimo priemonė'!$C72)),\"\")","v":0}]
[{"$f":"IF((LEN('Svorio kritimo sekimo priemonė'!$C73)=0),TRUE)","v":true},{"$f":"IFERROR(IF(A70,0,IF(LEN('Svorio kritimo sekimo priemonė'!$B73)=0,0,'Svorio kritimo sekimo priemonė'!$B73)),\"\")","v":"00:00:00"},{"$f":"IFERROR(IF(A70,0,IF(LEN('Svorio kritimo sekimo priemonė'!$C73)=0,0,'Svorio kritimo sekimo priemonė'!$C73)),\"\")","v":0}]
[{"$f":"IF((LEN('Svorio kritimo sekimo priemonė'!$C74)=0),TRUE)","v":true},{"$f":"IFERROR(IF(A71,0,IF(LEN('Svorio kritimo sekimo priemonė'!$B74)=0,0,'Svorio kritimo sekimo priemonė'!$B74)),\"\")","v":"00:00:00"},{"$f":"IFERROR(IF(A71,0,IF(LEN('Svorio kritimo sekimo priemonė'!$C74)=0,0,'Svorio kritimo sekimo priemonė'!$C74)),\"\")","v":0}]
[{"$f":"IF((LEN('Svorio kritimo sekimo priemonė'!$C75)=0),TRUE)","v":true},{"$f":"IFERROR(IF(A72,0,IF(LEN('Svorio kritimo sekimo priemonė'!$B75)=0,0,'Svorio kritimo sekimo priemonė'!$B75)),\"\")","v":"00:00:00"},{"$f":"IFERROR(IF(A72,0,IF(LEN('Svorio kritimo sekimo priemonė'!$C75)=0,0,'Svorio kritimo sekimo priemonė'!$C75)),\"\")","v":0}]
[{"$f":"IF((LEN('Svorio kritimo sekimo priemonė'!$C76)=0),TRUE)","v":true},{"$f":"IFERROR(IF(A73,0,IF(LEN('Svorio kritimo sekimo priemonė'!$B76)=0,0,'Svorio kritimo sekimo priemonė'!$B76)),\"\")","v":"00:00:00"},{"$f":"IFERROR(IF(A73,0,IF(LEN('Svorio kritimo sekimo priemonė'!$C76)=0,0,'Svorio kritimo sekimo priemonė'!$C76)),\"\")","v":0}]
[{"$f":"IF((LEN('Svorio kritimo sekimo priemonė'!$C77)=0),TRUE)","v":true},{"$f":"IFERROR(IF(A74,0,IF(LEN('Svorio kritimo sekimo priemonė'!$B77)=0,0,'Svorio kritimo sekimo priemonė'!$B77)),\"\")","v":"00:00:00"},{"$f":"IFERROR(IF(A74,0,IF(LEN('Svorio kritimo sekimo priemonė'!$C77)=0,0,'Svorio kritimo sekimo priemonė'!$C77)),\"\")","v":0}]
[{"$f":"IF((LEN('Svorio kritimo sekimo priemonė'!$C78)=0),TRUE)","v":true},{"$f":"IFERROR(IF(A75,0,IF(LEN('Svorio kritimo sekimo priemonė'!$B78)=0,0,'Svorio kritimo sekimo priemonė'!$B78)),\"\")","v":"00:00:00"},{"$f":"IFERROR(IF(A75,0,IF(LEN('Svorio kritimo sekimo priemonė'!$C78)=0,0,'Svorio kritimo sekimo priemonė'!$C78)),\"\")","v":0}]
[{"$f":"IF((LEN('Svorio kritimo sekimo priemonė'!$C79)=0),TRUE)","v":true},{"$f":"IFERROR(IF(A76,0,IF(LEN('Svorio kritimo sekimo priemonė'!$B79)=0,0,'Svorio kritimo sekimo priemonė'!$B79)),\"\")","v":"00:00:00"},{"$f":"IFERROR(IF(A76,0,IF(LEN('Svorio kritimo sekimo priemonė'!$C79)=0,0,'Svorio kritimo sekimo priemonė'!$C79)),\"\")","v":0}]
[{"$f":"IF((LEN('Svorio kritimo sekimo priemonė'!$C80)=0),TRUE)","v":true},{"$f":"IFERROR(IF(A77,0,IF(LEN('Svorio kritimo sekimo priemonė'!$B80)=0,0,'Svorio kritimo sekimo priemonė'!$B80)),\"\")","v":"00:00:00"},{"$f":"IFERROR(IF(A77,0,IF(LEN('Svorio kritimo sekimo priemonė'!$C80)=0,0,'Svorio kritimo sekimo priemonė'!$C80)),\"\")","v":0}]
[{"$f":"IF((LEN('Svorio kritimo sekimo priemonė'!$C81)=0),TRUE)","v":true},{"$f":"IFERROR(IF(A78,0,IF(LEN('Svorio kritimo sekimo priemonė'!$B81)=0,0,'Svorio kritimo sekimo priemonė'!$B81)),\"\")","v":"00:00:00"},{"$f":"IFERROR(IF(A78,0,IF(LEN('Svorio kritimo sekimo priemonė'!$C81)=0,0,'Svorio kritimo sekimo priemonė'!$C81)),\"\")","v":0}]
[{"$f":"IF((LEN('Svorio kritimo sekimo priemonė'!$C82)=0),TRUE)","v":true},{"$f":"IFERROR(IF(A79,0,IF(LEN('Svorio kritimo sekimo priemonė'!$B82)=0,0,'Svorio kritimo sekimo priemonė'!$B82)),\"\")","v":"00:00:00"},{"$f":"IFERROR(IF(A79,0,IF(LEN('Svorio kritimo sekimo priemonė'!$C82)=0,0,'Svorio kritimo sekimo priemonė'!$C82)),\"\")","v":0}]
[{"$f":"IF((LEN('Svorio kritimo sekimo priemonė'!$C83)=0),TRUE)","v":true},{"$f":"IFERROR(IF(A80,0,IF(LEN('Svorio kritimo sekimo priemonė'!$B83)=0,0,'Svorio kritimo sekimo priemonė'!$B83)),\"\")","v":"00:00:00"},{"$f":"IFERROR(IF(A80,0,IF(LEN('Svorio kritimo sekimo priemonė'!$C83)=0,0,'Svorio kritimo sekimo priemonė'!$C83)),\"\")","v":0}]
[{"$f":"IF((LEN('Svorio kritimo sekimo priemonė'!$C84)=0),TRUE)","v":true},{"$f":"IFERROR(IF(A81,0,IF(LEN('Svorio kritimo sekimo priemonė'!$B84)=0,0,'Svorio kritimo sekimo priemonė'!$B84)),\"\")","v":"00:00:00"},{"$f":"IFERROR(IF(A81,0,IF(LEN('Svorio kritimo sekimo priemonė'!$C84)=0,0,'Svorio kritimo sekimo priemonė'!$C84)),\"\")","v":0}]
[{"$f":"IF((LEN('Svorio kritimo sekimo priemonė'!$C85)=0),TRUE)","v":true},{"$f":"IFERROR(IF(A82,0,IF(LEN('Svorio kritimo sekimo priemonė'!$B85)=0,0,'Svorio kritimo sekimo priemonė'!$B85)),\"\")","v":"00:00:00"},{"$f":"IFERROR(IF(A82,0,IF(LEN('Svorio kritimo sekimo priemonė'!$C85)=0,0,'Svorio kritimo sekimo priemonė'!$C85)),\"\")","v":0}]
[{"$f":"IF((LEN('Svorio kritimo sekimo priemonė'!$C86)=0),TRUE)","v":true},{"$f":"IFERROR(IF(A83,0,IF(LEN('Svorio kritimo sekimo priemonė'!$B86)=0,0,'Svorio kritimo sekimo priemonė'!$B86)),\"\")","v":"00:00:00"},{"$f":"IFERROR(IF(A83,0,IF(LEN('Svorio kritimo sekimo priemonė'!$C86)=0,0,'Svorio kritimo sekimo priemonė'!$C86)),\"\")","v":0}]
[{"$f":"IF((LEN('Svorio kritimo sekimo priemonė'!$C87)=0),TRUE)","v":true},{"$f":"IFERROR(IF(A84,0,IF(LEN('Svorio kritimo sekimo priemonė'!$B87)=0,0,'Svorio kritimo sekimo priemonė'!$B87)),\"\")","v":"00:00:00"},{"$f":"IFERROR(IF(A84,0,IF(LEN('Svorio kritimo sekimo priemonė'!$C87)=0,0,'Svorio kritimo sekimo priemonė'!$C87)),\"\")","v":0}]
[{"$f":"IF((LEN('Svorio kritimo sekimo priemonė'!$C88)=0),TRUE)","v":true},{"$f":"IFERROR(IF(A85,0,IF(LEN('Svorio kritimo sekimo priemonė'!$B88)=0,0,'Svorio kritimo sekimo priemonė'!$B88)),\"\")","v":"00:00:00"},{"$f":"IFERROR(IF(A85,0,IF(LEN('Svorio kritimo sekimo priemonė'!$C88)=0,0,'Svorio kritimo sekimo priemonė'!$C88)),\"\")","v":0}]
[{"$f":"IF((LEN('Svorio kritimo sekimo priemonė'!$C89)=0),TRUE)","v":true},{"$f":"IFERROR(IF(A86,0,IF(LEN('Svorio kritimo sekimo priemonė'!$B89)=0,0,'Svorio kritimo sekimo priemonė'!$B89)),\"\")","v":"00:00:00"},{"$f":"IFERROR(IF(A86,0,IF(LEN('Svorio kritimo sekimo priemonė'!$C89)=0,0,'Svorio kritimo sekimo priemonė'!$C89)),\"\")","v":0}]
[{"$f":"IF((LEN('Svorio kritimo sekimo priemonė'!$C90)=0),TRUE)","v":true},{"$f":"IFERROR(IF(A87,0,IF(LEN('Svorio kritimo sekimo priemonė'!$B90)=0,0,'Svorio kritimo sekimo priemonė'!$B90)),\"\")","v":"00:00:00"},{"$f":"IFERROR(IF(A87,0,IF(LEN('Svorio kritimo sekimo priemonė'!$C90)=0,0,'Svorio kritimo sekimo priemonė'!$C90)),\"\")","v":0}]
[{"$f":"IF((LEN('Svorio kritimo sekimo priemonė'!$C91)=0),TRUE)","v":true},{"$f":"IFERROR(IF(A88,0,IF(LEN('Svorio kritimo sekimo priemonė'!$B91)=0,0,'Svorio kritimo sekimo priemonė'!$B91)),\"\")","v":"00:00:00"},{"$f":"IFERROR(IF(A88,0,IF(LEN('Svorio kritimo sekimo priemonė'!$C91)=0,0,'Svorio kritimo sekimo priemonė'!$C91)),\"\")","v":0}]
[{"$f":"IF((LEN('Svorio kritimo sekimo priemonė'!$C92)=0),TRUE)","v":true},{"$f":"IFERROR(IF(A89,0,IF(LEN('Svorio kritimo sekimo priemonė'!$B92)=0,0,'Svorio kritimo sekimo priemonė'!$B92)),\"\")","v":"00:00:00"},{"$f":"IFERROR(IF(A89,0,IF(LEN('Svorio kritimo sekimo priemonė'!$C92)=0,0,'Svorio kritimo sekimo priemonė'!$C92)),\"\")","v":0}]
[{"$f":"IF((LEN('Svorio kritimo sekimo priemonė'!$C93)=0),TRUE)","v":true},{"$f":"IFERROR(IF(A90,0,IF(LEN('Svorio kritimo sekimo priemonė'!$B93)=0,0,'Svorio kritimo sekimo priemonė'!$B93)),\"\")","v":"00:00:00"},{"$f":"IFERROR(IF(A90,0,IF(LEN('Svorio kritimo sekimo priemonė'!$C93)=0,0,'Svorio kritimo sekimo priemonė'!$C93)),\"\")","v":0}]
[{"$f":"IF((LEN('Svorio kritimo sekimo priemonė'!$C94)=0),TRUE)","v":true},{"$f":"IFERROR(IF(A91,0,IF(LEN('Svorio kritimo sekimo priemonė'!$B94)=0,0,'Svorio kritimo sekimo priemonė'!$B94)),\"\")","v":"00:00:00"},{"$f":"IFERROR(IF(A91,0,IF(LEN('Svorio kritimo sekimo priemonė'!$C94)=0,0,'Svorio kritimo sekimo priemonė'!$C94)),\"\")","v":0}]
[{"$f":"IF((LEN('Svorio kritimo sekimo priemonė'!$C95)=0),TRUE)","v":true},{"$f":"IFERROR(IF(A92,0,IF(LEN('Svorio kritimo sekimo priemonė'!$B95)=0,0,'Svorio kritimo sekimo priemonė'!$B95)),\"\")","v":"00:00:00"},{"$f":"IFERROR(IF(A92,0,IF(LEN('Svorio kritimo sekimo priemonė'!$C95)=0,0,'Svorio kritimo sekimo priemonė'!$C95)),\"\")","v":0}]
[{"$f":"IF((LEN('Svorio kritimo sekimo priemonė'!$C96)=0),TRUE)","v":true},{"$f":"IFERROR(IF(A93,0,IF(LEN('Svorio kritimo sekimo priemonė'!$B96)=0,0,'Svorio kritimo sekimo priemonė'!$B96)),\"\")","v":"00:00:00"},{"$f":"IFERROR(IF(A93,0,IF(LEN('Svorio kritimo sekimo priemonė'!$C96)=0,0,'Svorio kritimo sekimo priemonė'!$C96)),\"\")","v":0}]
[{"$f":"IF((LEN('Svorio kritimo sekimo priemonė'!$C97)=0),TRUE)","v":true},{"$f":"IFERROR(IF(A94,0,IF(LEN('Svorio kritimo sekimo priemonė'!$B97)=0,0,'Svorio kritimo sekimo priemonė'!$B97)),\"\")","v":"00:00:00"},{"$f":"IFERROR(IF(A94,0,IF(LEN('Svorio kritimo sekimo priemonė'!$C97)=0,0,'Svorio kritimo sekimo priemonė'!$C97)),\"\")","v":0}]
[{"$f":"IF((LEN('Svorio kritimo sekimo priemonė'!$C98)=0),TRUE)","v":true},{"$f":"IFERROR(IF(A95,0,IF(LEN('Svorio kritimo sekimo priemonė'!$B98)=0,0,'Svorio kritimo sekimo priemonė'!$B98)),\"\")","v":"00:00:00"},{"$f":"IFERROR(IF(A95,0,IF(LEN('Svorio kritimo sekimo priemonė'!$C98)=0,0,'Svorio kritimo sekimo priemonė'!$C98)),\"\")","v":0}]
[{"$f":"IF((LEN('Svorio kritimo sekimo priemonė'!$C99)=0),TRUE)","v":true},{"$f":"IFERROR(IF(A96,0,IF(LEN('Svorio kritimo sekimo priemonė'!$B99)=0,0,'Svorio kritimo sekimo priemonė'!$B99)),\"\")","v":"00:00:00"},{"$f":"IFERROR(IF(A96,0,IF(LEN('Svorio kritimo sekimo priemonė'!$C99)=0,0,'Svorio kritimo sekimo priemonė'!$C99)),\"\")","v":0}]
[{"$f":"IF((LEN('Svorio kritimo sekimo priemonė'!$C100)=0),TRUE)","v":true},{"$f":"IFERROR(IF(A97,0,IF(LEN('Svorio kritimo sekimo priemonė'!$B100)=0,0,'Svorio kritimo sekimo priemonė'!$B100)),\"\")","v":"00:00:00"},{"$f":"IFERROR(IF(A97,0,IF(LEN('Svorio kritimo sekimo priemonė'!$C100)=0,0,'Svorio kritimo sekimo priemonė'!$C100)),\"\")","v":0}]
[{"$f":"IF((LEN('Svorio kritimo sekimo priemonė'!$C101)=0),TRUE)","v":true},{"$f":"IFERROR(IF(A98,0,IF(LEN('Svorio kritimo sekimo priemonė'!$B101)=0,0,'Svorio kritimo sekimo priemonė'!$B101)),\"\")","v":"00:00:00"},{"$f":"IFERROR(IF(A98,0,IF(LEN('Svorio kritimo sekimo priemonė'!$C101)=0,0,'Svorio kritimo sekimo priemonė'!$C101)),\"\")","v":0}]
[{"$f":"IF((LEN('Svorio kritimo sekimo priemonė'!$C102)=0),TRUE)","v":true},{"$f":"IFERROR(IF(A99,0,IF(LEN('Svorio kritimo sekimo priemonė'!$B102)=0,0,'Svorio kritimo sekimo priemonė'!$B102)),\"\")","v":"00:00:00"},{"$f":"IFERROR(IF(A99,0,IF(LEN('Svorio kritimo sekimo priemonė'!$C102)=0,0,'Svorio kritimo sekimo priemonė'!$C102)),\"\")","v":0}]
[{"$f":"IF((LEN('Svorio kritimo sekimo priemonė'!$C103)=0),TRUE)","v":true},{"$f":"IFERROR(IF(A100,0,IF(LEN('Svorio kritimo sekimo priemonė'!$B103)=0,0,'Svorio kritimo sekimo priemonė'!$B103)),\"\")","v":"00:00:00"},{"$f":"IFERROR(IF(A100,0,IF(LEN('Svorio kritimo sekimo priemonė'!$C103)=0,0,'Svorio kritimo sekimo priemonė'!$C103)),\"\")","v":0}]
[{"$f":"IF((LEN('Svorio kritimo sekimo priemonė'!$C104)=0),TRUE)","v":true},{"$f":"IFERROR(IF(A101,0,IF(LEN('Svorio kritimo sekimo priemonė'!$B104)=0,0,'Svorio kritimo sekimo priemonė'!$B104)),\"\")","v":"00:00:00"},{"$f":"IFERROR(IF(A101,0,IF(LEN('Svorio kritimo sekimo priemonė'!$C104)=0,0,'Svorio kritimo sekimo priemonė'!$C104)),\"\")","v":0}]
[{"$f":"IF((LEN('Svorio kritimo sekimo priemonė'!$C105)=0),TRUE)","v":true},{"$f":"IFERROR(IF(A102,0,IF(LEN('Svorio kritimo sekimo priemonė'!$B105)=0,0,'Svorio kritimo sekimo priemonė'!$B105)),\"\")","v":"00:00:00"},{"$f":"IFERROR(IF(A102,0,IF(LEN('Svorio kritimo sekimo priemonė'!$C105)=0,0,'Svorio kritimo sekimo priemonė'!$C105)),\"\")","v":0}]
[{"$f":"IF((LEN('Svorio kritimo sekimo priemonė'!$C106)=0),TRUE)","v":true},{"$f":"IFERROR(IF(A103,0,IF(LEN('Svorio kritimo sekimo priemonė'!$B106)=0,0,'Svorio kritimo sekimo priemonė'!$B106)),\"\")","v":"00:00:00"},{"$f":"IFERROR(IF(A103,0,IF(LEN('Svorio kritimo sekimo priemonė'!$C106)=0,0,'Svorio kritimo sekimo priemonė'!$C106)),\"\")","v":0}]
[{"$f":"IF((LEN('Svorio kritimo sekimo priemonė'!$C107)=0),TRUE)","v":true},{"$f":"IFERROR(IF(A104,0,IF(LEN('Svorio kritimo sekimo priemonė'!$B107)=0,0,'Svorio kritimo sekimo priemonė'!$B107)),\"\")","v":"00:00:00"},{"$f":"IFERROR(IF(A104,0,IF(LEN('Svorio kritimo sekimo priemonė'!$C107)=0,0,'Svorio kritimo sekimo priemonė'!$C107)),\"\")","v":0}]
[{"$f":"IF((LEN('Svorio kritimo sekimo priemonė'!$C108)=0),TRUE)","v":true},{"$f":"IFERROR(IF(A105,0,IF(LEN('Svorio kritimo sekimo priemonė'!$B108)=0,0,'Svorio kritimo sekimo priemonė'!$B108)),\"\")","v":"00:00:00"},{"$f":"IFERROR(IF(A105,0,IF(LEN('Svorio kritimo sekimo priemonė'!$C108)=0,0,'Svorio kritimo sekimo priemonė'!$C108)),\"\")","v":0}]
[{"$f":"IF((LEN('Svorio kritimo sekimo priemonė'!$C109)=0),TRUE)","v":true},{"$f":"IFERROR(IF(A106,0,IF(LEN('Svorio kritimo sekimo priemonė'!$B109)=0,0,'Svorio kritimo sekimo priemonė'!$B109)),\"\")","v":"00:00:00"},{"$f":"IFERROR(IF(A106,0,IF(LEN('Svorio kritimo sekimo priemonė'!$C109)=0,0,'Svorio kritimo sekimo priemonė'!$C109)),\"\")","v":0}]
[{"$f":"IF((LEN('Svorio kritimo sekimo priemonė'!$C110)=0),TRUE)","v":true},{"$f":"IFERROR(IF(A107,0,IF(LEN('Svorio kritimo sekimo priemonė'!$B110)=0,0,'Svorio kritimo sekimo priemonė'!$B110)),\"\")","v":"00:00:00"},{"$f":"IFERROR(IF(A107,0,IF(LEN('Svorio kritimo sekimo priemonė'!$C110)=0,0,'Svorio kritimo sekimo priemonė'!$C110)),\"\")","v":0}]